bitfinex/quotes_BTCUSD_20250901
["timestamp","ask_amount","ask_price","bid_price","bid_amount"]
[1756707420050,1.51234176,107970.0,107960.0,0.00047437]
[1756707420465,1.54017576,107970.0,107960.0,0.00047437]
[1756707422332,1.54217576,107970.0,107960.0,0.00047437]
[1756707422769,1.54017576,107970.0,107960.0,0.00047437]
[1756707423213,1.54217576,107970.0,107960.0,0.00047437]
[1756707423635,1.54417576,107970.0,107960.0,0.00047437]
[1756707424217,1.54217576,107970.0,107960.0,0.00047437]
[1756707424856,1.54517576,107970.0,107960.0,0.00047437]
[1756707426551,1.54317576,107970.0,107960.0,0.00047437]
[1756707426932,1.54717576,107970.0,107960.0,0.00047437]
[1756707427342,1.54017576,107970.0,107960.0,0.00047437]
[1756707427681,1.54717576,107970.0,107960.0,0.00047437]
[1756707428517,1.54417576,107970.0,107960.0,0.00047437]
[1756707428713,1.38853576,107970.0,107960.0,0.00047437]
[1756707428921,1.54717576,107970.0,107960.0,0.00047437]
[1756707430209,1.56811458,107970.0,107960.0,0.00047437]
[1756707430439,1.66106434,107970.0,107960.0,0.00047437]
[1756707432513,1.66590069,107970.0,107960.0,0.00047437]
[1756707433483,1.51026069,107970.0,107960.0,0.00047437]
[1756707433685,1.66590069,107970.0,107960.0,0.00047437]
[1756707435433,1.57295093,107970.0,107960.0,0.00047437]
[1756707436163,0.52528812,107940.0,107930.0,0.0002]
[1756707436372,1.51239325,107940.0,107930.0,0.00034234]
[1756707437127,1.38459725,107940.0,107930.0,0.00034234]
[1756707437349,1.54023725,107940.0,107930.0,0.00034234]
[1756707439458,0.71731213,107940.0,107930.0,0.00034234]
[1756707439663,0.87295213,107940.0,107930.0,0.00034234]
[1756707439893,1.20659469,107940.0,107930.0,0.00034234]
[1756707440097,1.54023725,107940.0,107930.0,0.00034234]
[1756707440757,1.54123725,107940.0,107930.0,0.00034234]
[1756707441375,1.54523725,107940.0,107930.0,0.00034234]
[1756707441579,1.54123725,107940.0,107930.0,0.00034234]
[1756707441984,1.54523725,107940.0,107930.0,0.00034234]
[1756707442390,1.54123725,107940.0,107930.0,0.00034234]
[1756707442635,1.57813962,107940.0,107930.0,0.00034234]
[1756707442809,1.54423725,107940.0,107930.0,0.00034234]
[1756707443014,1.54723725,107940.0,107930.0,0.00034234]
[1756707444057,1.54423725,107940.0,107930.0,0.00034234]
[1756707444464,1.54723725,107940.0,107930.0,0.00034234]
[1756707449670,1.54323725,107940.0,107930.0,0.00034234]
[1756707449898,1.54723725,107940.0,107930.0,0.00034234]
[1756707450083,1.54423725,107940.0,107930.0,0.00034234]
[1756707450665,1.54723725,107940.0,107930.0,0.00034234]
[1756707452080,1.39159725,107940.0,107930.0,0.00034234]
[1756707452329,0.28346401,107940.0,107930.0,0.18564763]
[1756707452754,0.46875213,107940.0,107930.0,0.18564763]
[1756707452965,0.007,107940.0,107930.0,0.18564763]
[1756707453370,0.003,107940.0,107930.0,0.18564763]
[1756707453592,0.03267535,107950.0,107940.0,0.18528812]
[1756707453794,0.18981,107950.0,107940.0,0.18528812]
[1756707454008,0.16047635,107950.0,107940.0,0.18528812]
[1756707454211,0.15564,107950.0,107940.0,0.18528812]
[1756707454838,0.43267756,107960.0,107950.0,0.18527095]
[1756707455022,0.77357135,107960.0,107950.0,0.18527095]
[1756707455477,0.40484256,107960.0,107950.0,0.18527095]
[1756707455691,0.56048256,107960.0,107950.0,0.18527095]
[1756707456340,0.48928256,107960.0,107950.0,0.18527095]
[1756707456557,0.57820092,107970.0,107960.0,0.18525379]
[1756707456558,0.56893909,107970.0,107960.0,0.18525379]
[1756707456773,0.8175591,107970.0,107960.0,0.18525379]
[1756707457862,0.0500599,107970.0,107960.0,0.18525379]
[1756707458069,0.1778669,107970.0,107960.0,0.18525379]
[1756707458282,0.51150946,107970.0,107960.0,0.18525379]
[1756707458953,0.51450946,107970.0,107960.0,0.18525379]
[1756707459373,0.51850946,107970.0,107960.0,0.18525379]
[1756707462675,0.1848669,107970.0,107960.0,0.18525379]
[1756707462883,0.51850946,107970.0,107960.0,0.18525379]
[1756707463644,0.1848669,107970.0,107960.0,0.18525379]
[1756707463872,0.51850946,107970.0,107960.0,0.18525379]
[1756707464078,0.70374609,107970.0,107960.0,0.18525379]
[1756707464534,0.70374609,107970.0,107950.0,0.22706536]
[1756707464746,0.520391,107960.0,107950.0,0.22706536]
[1756707464966,0.18527095,107950.0,107940.0,0.19455252]
[1756707465190,0.48924256,107950.0,107940.0,0.19455252]
[1756707467487,0.48924256,107950.0,107940.0,0.23648016]
[1756707467717,0.49024256,107950.0,107940.0,0.23648016]
[1756707469218,0.49124256,107950.0,107940.0,0.23648016]
[1756707470664,0.002,107950.0,107940.0,0.81866273]
[1756707471366,0.002,107950.0,107940.0,0.48502017]
[1756707472026,0.001,107950.0,107940.0,0.48502017]
[1756707472491,0.15556,107960.0,107950.0,0.18527095]
[1756707473708,0.675951,107960.0,107950.0,0.18527095]
[1756707473914,0.67545635,107960.0,107950.0,0.18527095]
[1756707475262,0.67645635,107960.0,107950.0,0.18527095]
[1756707475688,0.49120256,107960.0,107950.0,0.18527095]
[1756707476562,0.002,107960.0,107950.0,0.18527095]
[1756707476774,0.49120256,107960.0,107950.0,0.18527095]
[1756707480391,0.002,107960.0,107950.0,0.18527095]
[1756707480771,0.002,107960.0,107950.0,0.96745352]
[1756707481169,0.002,107960.0,107950.0,0.97694336]
[1756707481596,0.002,107960.0,107950.0,1.06908218]
[1756707481810,0.001,107960.0,107950.0,1.40908218]
[1756707482181,0.001,107960.0,107950.0,1.61208218]
[1756707482641,0.001,107960.0,107950.0,1.60908218]
[1756707483065,0.0222269,107970.0,107960.0,0.18525379]
[1756707483269,0.0222269,107970.0,107960.0,0.2782338]
[1756707484119,0.0222269,107970.0,107960.0,0.4337938]
[1756707484581,0.0222269,107970.0,107960.0,0.4347938]
[1756707486280,0.0222269,107970.0,107960.0,0.2792338]
[1756707486509,0.0222269,107970.0,107960.0,0.4367938]
[1756707487171,0.0222269,107970.0,107960.0,0.18825379]
[1756707487380,0.0222269,107970.0,107960.0,0.34377379]
[1756707488274,0.0222269,107970.0,107960.0,0.34277379]
[1756707488629,0.0222269,107970.0,107960.0,0.18525379]
[1756707488832,0.0222269,107970.0,107960.0,0.34077379]
[1756707489033,0.0222269,107970.0,107960.0,0.18525379]
[1756707489229,0.0222269,107970.0,107960.0,0.34077379]
[1756707489787,0.0222269,107970.0,107960.0,0.34277379]
[1756707490195,0.0222269,107970.0,107960.0,0.34077379]
[1756707491466,0.0222269,107970.0,107960.0,0.34177379]
[1756707492097,0.54260074,107970.0,107960.0,0.18525379]
[1756707492298,0.69662609,107970.0,107960.0,0.18525379]
[1756707492506,0.69662609,107970.0,107950.0,0.54079095]
[1756707493347,0.18525379,107960.0,107950.0,0.54079095]
[1756707493554,0.69662609,107970.0,107950.0,0.54079095]
[1756707493699,0.520391,107960.0,107950.0,0.34079095]
[1756707493903,0.51889635,107960.0,107950.0,0.34079095]
[1756707494946,0.18525379,107960.0,107940.0,0.23553324]
[1756707495126,0.33364256,107950.0,107940.0,0.39105324]
[1756707495616,0.51891351,107950.0,107940.0,0.39105324]
[1756707496236,0.33364256,107950.0,107940.0,0.39105324]
[1756707496894,0.51891351,107950.0,107940.0,0.39105324]
[1756707497097,0.33364256,107950.0,107940.0,0.39105324]
[1756707497306,0.33364256,107950.0,107940.0,0.23553324]
[1756707497510,0.33364256,107950.0,107940.0,0.39105324]
[1756707497720,0.51891351,107950.0,107940.0,0.39305324]
[1756707497931,0.33364256,107950.0,107940.0,0.39305324]
[1756707498319,0.33364256,107950.0,107940.0,0.39105324]
[1756707498761,0.33364256,107950.0,107940.0,0.39205324]
[1756707498965,0.67441635,107960.0,107940.0,0.39205324]
[1756707499175,0.67441635,107960.0,107950.0,0.18527095]
[1756707499437,0.51889635,107960.0,107950.0,0.18527095]
[1756707499655,0.67441635,107960.0,107950.0,0.18527095]
[1756707500945,0.67541635,107960.0,107950.0,0.18527095]
[1756707501150,0.48916256,107960.0,107950.0,0.18527095]
[1756707501312,0.67441635,107960.0,107950.0,0.18527095]
[1756707501526,0.55036792,107970.0,107960.0,0.18525379]
[1756707501729,0.79886793,107970.0,107960.0,0.18525379]
[1756707502575,0.79886793,107970.0,107950.0,0.18527095]
[1756707502839,0.79886793,107970.0,107960.0,0.18525379]
[1756707503065,0.79986793,107970.0,107960.0,0.18525379]
[1756707504304,0.46622537,107970.0,107960.0,0.18525379]
[1756707504514,0.1787469,107970.0,107960.0,0.18525379]
[1756707504717,0.69862609,107970.0,107960.0,0.18525379]
[1756707505086,0.51238946,107970.0,107960.0,0.18525379]
[1756707505921,0.1787469,107970.0,107960.0,0.18525379]
[1756707506236,0.0222269,107970.0,107960.0,0.34077379]
[1756707506651,0.0232269,107970.0,107960.0,0.34077379]
[1756707506871,0.35686946,107970.0,107960.0,0.34077379]
[1756707507917,0.0232269,107970.0,107960.0,0.45469262]
[1756707508332,0.0232269,107970.0,107960.0,0.94469262]
[1756707508542,0.0222269,107970.0,107960.0,1.87833518]
[1756707508953,0.0222269,107970.0,107960.0,1.54469262]
[1756707509837,0.0222269,107970.0,107960.0,1.34769262]
[1756707510050,0.35586946,107970.0,107960.0,1.1732338]
[1756707510254,0.35586946,107970.0,107960.0,0.89577379]
[1756707511099,0.0222269,107970.0,107960.0,0.49577379]
[1756707511306,0.35586946,107970.0,107960.0,0.49577379]
[1756707511719,0.35586946,107970.0,107960.0,0.49277379]
[1756707511923,0.35586946,107970.0,107960.0,0.49077379]
[1756707512123,0.35586946,107970.0,107960.0,0.49277379]
[1756707512356,0.35586946,107970.0,107960.0,0.49377379]
[1756707512557,0.35586946,107970.0,107960.0,0.49177379]
[1756707512877,0.35586946,107970.0,107960.0,0.34277379]
[1756707513111,0.35586946,107970.0,107960.0,0.18725379]
[1756707513330,0.35586946,107970.0,107960.0,0.34377379]
[1756707514379,0.35586946,107970.0,107960.0,0.18825379]
[1756707514599,0.35586946,107970.0,107960.0,0.34373379]
[1756707515201,0.35586946,107970.0,107960.0,0.34173379]
[1756707515720,0.35586946,107970.0,107960.0,0.34073379]
[1756707517022,0.0222269,107970.0,107960.0,0.34073379]
[1756707519273,0.0222269,107970.0,107960.0,0.34273379]
[1756707519716,0.0222269,107970.0,107960.0,0.34373379]
[1756707520511,0.35586946,107970.0,107960.0,0.34373379]
[1756707520940,0.0222269,107970.0,107960.0,0.34373379]
[1756707526816,0.35586946,107970.0,107960.0,0.34373379]
[1756707527696,0.35586946,107970.0,107960.0,0.34073379]
[1756707528585,0.68951202,107970.0,107960.0,0.18525379]
[1756707528804,0.18525379,107960.0,107950.0,0.18527095]
[1756707529016,0.51889635,107960.0,107950.0,0.34075095]
[1756707530126,0.0222269,107970.0,107960.0,0.18525379]
[1756707530752,0.0222269,107970.0,107960.0,0.18625379]
[1756707531390,0.0222269,107970.0,107960.0,0.18825379]
[1756707532648,0.0222269,107970.0,107960.0,0.58825379]
[1756707532857,0.0222269,107970.0,107960.0,0.18825379]
[1756707539413,0.0222269,107970.0,107960.0,1.12581518]
[1756707539618,0.0222269,107970.0,107960.0,1.32581518]
[1756707540008,0.0222269,107970.0,107960.0,1.72581518]
[1756707540520,0.0222269,107970.0,107960.0,1.39217262]
[1756707540725,0.0222269,107970.0,107960.0,1.88153518]
[1756707543273,0.0222269,107970.0,107960.0,1.72581518]
[1756707543505,0.0222269,107970.0,107960.0,1.88149518]
[1756707544531,0.00639836,107970.0,107960.0,1.88149518]
[1756707545875,0.00639836,107970.0,107960.0,1.72581518]
[1756707546014,0.00639836,107970.0,107960.0,1.88149518]
[1756707547558,0.00639836,107970.0,107960.0,1.72581518]
[1756707547763,0.00639836,107970.0,107960.0,1.88149518]
[1756707549412,0.00639836,107970.0,107960.0,1.75363618]
[1756707549611,0.00639836,107970.0,107960.0,1.90927618]
[1756707550672,0.00639836,107970.0,107960.0,1.75363618]
[1756707550874,0.00639836,107970.0,107960.0,1.90923618]
[1756707553760,0.85250256,108020.0,108010.0,0.18516803]
[1756707554542,0.86173412,108020.0,108010.0,0.18516803]
[1756707554956,0.85254998,108020.0,108010.0,0.18516803]
[1756707555363,1.03770087,108020.0,108010.0,0.18516803]
[1756707556496,1.03770087,108020.0,108010.0,0.22740214]
[1756707556705,1.04170087,108020.0,108010.0,0.22740214]
[1756707556902,1.04670087,108020.0,108010.0,0.22740214]
[1756707557465,1.03770087,108020.0,108010.0,0.22740214]
[1756707557749,1.04070087,108020.0,108010.0,0.22740214]
[1756707557950,1.04170087,108020.0,108010.0,0.22740214]
[1756707559200,1.05102597,108020.0,108010.0,0.22740214]
[1756707562133,1.04170087,108020.0,108010.0,0.22740214]
[1756707563798,1.05108653,108020.0,108010.0,0.22740214]
[1756707564273,0.71744397,108020.0,108010.0,0.22740214]
[1756707564476,0.85654998,108020.0,108010.0,0.22740214]
[1756707564634,1.04170087,108020.0,108010.0,0.22740214]
[1756707565363,0.85654998,108020.0,108010.0,0.22740214]
[1756707566832,1.04170087,108020.0,108010.0,0.22740214]
[1756707567216,0.85654998,108020.0,108010.0,0.22740214]
[1756707567815,1.04070087,108020.0,108010.0,0.22740214]
[1756707569238,1.04170087,108020.0,108010.0,0.22740214]
[1756707569850,0.85654998,108020.0,108010.0,0.22740214]
[1756707570577,1.04170087,108020.0,108010.0,0.22740214]
[1756707571159,1.04170087,108020.0,108010.0,0.04223411]
[1756707571361,1.04170087,108020.0,108010.0,0.18516803]
[1756707571562,1.04170087,108020.0,108010.0,0.04269703]
[1756707571762,0.18516803,108010.0,108000.0,0.18518092]
[1756707571968,0.18516803,108010.0,107990.0,0.19442969]
[1756707572174,0.33364256,108000.0,107990.0,0.35014969]
[1756707575215,0.33364256,108000.0,107990.0,0.35114969]
[1756707575706,0.33364256,108000.0,107990.0,0.35214969]
[1756707576202,0.33364256,108000.0,107990.0,0.39349481]
[1756707576506,0.33364256,108000.0,107990.0,0.39249481]
[1756707577373,0.80629586,108020.0,108000.0,0.18518518]
[1756707577602,0.70405831,108020.0,108010.0,0.18516803]
[1756707577823,0.78853831,108020.0,108010.0,0.18516803]
[1756707578208,0.60338742,108020.0,108010.0,0.18516803]
[1756707578406,0.93702998,108020.0,108010.0,0.18516803]
[1756707578854,0.93902998,108020.0,108010.0,0.18516803]
[1756707579054,0.78138998,108020.0,108010.0,0.18516803]
[1756707579284,0.93802998,108020.0,108010.0,0.18516803]
[1756707579484,1.12418087,108020.0,108010.0,0.18516803]
[1756707579907,0.93802998,108020.0,108010.0,0.18516803]
[1756707580099,1.12318087,108020.0,108010.0,0.18516803]
[1756707580222,1.12418087,108020.0,108010.0,0.18516803]
[1756707580837,1.12318087,108020.0,108010.0,0.18516803]
[1756707581245,1.12218087,108020.0,108010.0,0.18516803]
[1756707581709,1.12418087,108020.0,108010.0,0.18516803]
[1756707582221,1.12218087,108020.0,108010.0,0.18516803]
[1756707582463,0.93802998,108020.0,108010.0,0.18516803]
[1756707582879,1.12218087,108020.0,108010.0,0.18516803]
[1756707583786,1.12318087,108020.0,108010.0,0.18516803]
[1756707584411,1.12218087,108020.0,108010.0,0.18516803]
[1756707584612,1.12210087,108020.0,108010.0,0.18516803]
[1756707585464,1.12410087,108020.0,108010.0,0.18516803]
[1756707585902,1.12210087,108020.0,108010.0,0.18516803]
[1756707586314,1.12310087,108020.0,108010.0,0.18516803]
[1756707586756,1.12210087,108020.0,108010.0,0.18516803]
[1756707586950,1.12410087,108020.0,108010.0,0.18516803]
[1756707587567,1.12210087,108020.0,108010.0,0.18516803]
[1756707587943,1.12210087,108020.0,108000.0,0.18518518]
[1756707588153,0.51881059,108010.0,108000.0,0.18518518]
[1756707589536,0.67433059,108010.0,108000.0,0.18518518]
[1756707589749,0.48912256,108010.0,108000.0,0.18518518]
[1756707589957,0.67429059,108010.0,108000.0,0.18518518]
[1756707590141,0.33464256,108010.0,108000.0,0.18518518]
[1756707590293,0.49012256,108010.0,108000.0,0.18518518]
[1756707590708,0.64012256,108010.0,108000.0,0.18518518]
[1756707591113,0.63912256,108010.0,108000.0,0.18518518]
[1756707592875,0.64012256,108010.0,108000.0,0.18518518]
[1756707593428,0.82529059,108010.0,108000.0,0.18518518]
[1756707593675,0.82429059,108010.0,108000.0,0.18518518]
[1756707594070,0.64016256,108010.0,108000.0,0.18518518]
[1756707594741,0.64012256,108010.0,108000.0,0.18518518]
[1756707594982,0.48464256,108010.0,108000.0,0.18518518]
[1756707595188,0.64012256,108010.0,108000.0,0.18518518]
[1756707596414,0.48464256,108010.0,108000.0,0.18518518]
[1756707596573,0.64012256,108010.0,108000.0,0.18518518]
[1756707596794,0.63912256,108010.0,108000.0,0.18518518]
[1756707597362,0.82429059,108010.0,108000.0,0.18518518]
[1756707597574,0.82529059,108010.0,108000.0,0.18518518]
[1756707598021,0.82429059,108010.0,108000.0,0.18518518]
[1756707598425,0.82529059,108010.0,108000.0,0.18518518]
[1756707599634,0.64012256,108010.0,108000.0,0.18518518]
[1756707600382,0.82529059,108010.0,108000.0,0.18518518]
[1756707600679,0.48464256,108010.0,108000.0,0.18518518]
[1756707600835,0.64016256,108010.0,108000.0,0.18518518]
[1756707602029,0.82533059,108010.0,107990.0,0.39129481]
[1756707602237,0.33364256,108000.0,107990.0,0.39129481]
[1756707603190,0.30648,108010.0,108000.0,0.18518518]
[1756707603417,0.64012256,108010.0,108000.0,0.18518518]
[1756707603621,0.63912256,108010.0,108000.0,0.18518518]
[1756707604137,0.48364256,108010.0,108000.0,0.18518518]
[1756707605376,0.48464256,108010.0,108000.0,0.18518518]
[1756707606225,0.151,108010.0,108000.0,0.18518518]
[1756707606427,0.48464256,108010.0,108000.0,0.18518518]
[1756707606813,0.48364256,108010.0,108000.0,0.18518518]
[1756707607554,0.48464256,108010.0,108000.0,0.18518518]
[1756707607781,0.151,108010.0,108000.0,0.18518518]
[1756707607985,0.48364256,108010.0,108000.0,0.18518518]
[1756707608390,0.48364256,108010.0,108000.0,0.18618518]
[1756707608811,0.48364256,108010.0,108000.0,0.18718518]
[1756707609767,0.15,108010.0,108000.0,0.18718518]
[1756707612541,0.48364256,108010.0,108000.0,0.18718518]
[1756707613161,0.15,108010.0,108000.0,0.86226401]
[1756707613379,0.15,108010.0,108000.0,1.19590657]
[1756707613794,0.15,108010.0,108000.0,1.29007701]
[1756707614577,0.15,108010.0,108000.0,1.44559701]
[1756707615513,0.15,108010.0,108000.0,1.29007701]
[1756707615721,0.15,108010.0,108000.0,1.44555701]
[1756707618672,0.15,108010.0,108000.0,1.77919957]
[1756707619024,0.15,108010.0,108000.0,1.44555701]
[1756707619701,0.15,108010.0,108000.0,1.29007701]
[1756707619914,0.15,108010.0,108000.0,1.44555701]
[1756707623314,0.15,108010.0,108000.0,1.77919957]
[1756707626791,0.15,108010.0,108000.0,1.77915957]
[1756707626996,0.15,108010.0,108000.0,1.77815957]
[1756707627204,0.15,108010.0,108000.0,1.44451701]
[1756707627405,0.15,108010.0,108000.0,1.78115957]
[1756707628274,0.15,108010.0,108000.0,1.78015957]
[1756707628651,0.15,108010.0,108000.0,1.78315957]
[1756707629014,0.15,108010.0,108000.0,1.78015957]
[1756707629224,4.742e-05,108020.0,108010.0,0.92516803]
[1756707629448,4.742e-05,108020.0,108010.0,1.5072306]
[1756707629862,4.742e-05,108020.0,108010.0,1.9072306]
[1756707630237,4.742e-05,108020.0,108010.0,1.9350406]
[1756707630861,4.742e-05,108020.0,108010.0,1.60139804]
[1756707631667,4.742e-05,108020.0,108010.0,1.95597942]
[1756707632051,4.742e-05,108020.0,108010.0,1.95897942]
[1756707632479,4.742e-05,108020.0,108010.0,1.96197942]
[1756707632878,4.742e-05,108020.0,108010.0,1.80653942]
[1756707633050,4.742e-05,108020.0,108010.0,1.42833686]
[1756707634876,4.742e-05,108020.0,108010.0,1.42533686]
[1756707635297,4.742e-05,108020.0,108010.0,1.42433686]
[1756707635736,4.742e-05,108020.0,108010.0,1.42633686]
[1756707635949,4.742e-05,108020.0,108010.0,1.42233686]
[1756707636346,4.742e-05,108020.0,108010.0,1.27289686]
[1756707636548,4.742e-05,108020.0,108010.0,1.42833686]
[1756707637505,4.742e-05,108020.0,108010.0,1.92833686]
[1756707639635,4.742e-05,108020.0,108010.0,1.92233686]
[1756707640193,4.742e-05,108020.0,108010.0,1.77089686]
[1756707640401,0.33368998,108020.0,108010.0,1.72633686]
[1756707640601,0.33368998,108020.0,108010.0,1.29852686]
[1756707641190,0.33368998,108020.0,108010.0,1.69852686]
[1756707641806,0.33368998,108020.0,108010.0,1.29852686]
[1756707642011,0.33368998,108020.0,108010.0,1.29452686]
[1756707642615,0.33368998,108020.0,108010.0,1.29852686]
[1756707642816,0.33368998,108020.0,108010.0,1.14308686]
[1756707643022,0.33368998,108020.0,108010.0,1.29852686]
[1756707643191,4.742e-05,108020.0,108010.0,0.79852686]
[1756707644473,4.742e-05,108020.0,108010.0,0.99852686]
[1756707644855,4.742e-05,108020.0,108010.0,1.39852686]
[1756707645678,4.742e-05,108020.0,108010.0,1.73216942]
[1756707645901,4.742e-05,108020.0,108010.0,1.75997942]
[1756707647126,4.742e-05,108020.0,108010.0,1.42633686]
[1756707647568,4.742e-05,108020.0,108010.0,1.27089686]
[1756707647779,4.742e-05,108020.0,108010.0,1.42633686]
[1756707648621,0.33357498,108040.0,108010.0,1.42633686]
[1756707648823,0.3336224,108040.0,108030.0,0.18513375]
[1756707648969,0.3336224,108040.0,108030.0,0.34057375]
[1756707649372,4.742e-05,108040.0,108030.0,0.34057375]
[1756707650190,4.742e-05,108040.0,108030.0,0.63355376]
[1756707650393,0.33368998,108040.0,108030.0,0.63355376]
[1756707650674,0.33468998,108040.0,108030.0,0.63355376]
[1756707651058,0.33368998,108040.0,108030.0,0.64295862]
[1756707652958,0.33468998,108040.0,108030.0,0.64295862]
[1756707653529,0.33368998,108040.0,108030.0,0.64295862]
[1756707654153,4.742e-05,108040.0,108030.0,0.64295862]
[1756707654358,4.742e-05,108040.0,108030.0,0.70700281]
[1756707655093,4.742e-05,108040.0,108030.0,1.04700281]
[1756707657857,4.742e-05,108040.0,108030.0,1.44700281]
[1756707658026,4.742e-05,108040.0,108030.0,1.00489744]
[1756707658394,4.742e-05,108040.0,108030.0,1.40489744]
[1756707659335,4.742e-05,108040.0,108030.0,1.40485744]
[1756707659946,4.742e-05,108040.0,108030.0,1.43266444]
[1756707660339,4.742e-05,108040.0,108030.0,1.766307]
[1756707660925,7.42e-06,108040.0,108030.0,1.766307]
[1756707662052,7.42e-06,108040.0,108030.0,1.766667]
[1756707663991,7.42e-06,108040.0,108030.0,1.80938949]
[1756707664190,7.42e-06,108040.0,108030.0,1.65362949]
[1756707664393,7.42e-06,108040.0,108030.0,1.47566693]
[1756707664644,7.42e-06,108040.0,108030.0,1.80930949]
[1756707664797,7.42e-06,108040.0,108030.0,1.47566693]
[1756707664996,7.42e-06,108040.0,108030.0,1.31998693]
[1756707665267,7.42e-06,108040.0,108030.0,1.47578693]
[1756707665480,7.42e-06,108040.0,108030.0,1.31998693]
[1756707665684,7.42e-06,108040.0,108030.0,1.47578693]
[1756707667126,7.42e-06,108040.0,108030.0,1.80942949]
[1756707667729,7.42e-06,108040.0,108030.0,1.47578693]
[1756707667936,7.42e-06,108040.0,108030.0,1.80942949]
[1756707668216,7.42e-06,108040.0,108030.0,2.30942949]
[1756707668622,7.42e-06,108040.0,108030.0,1.97578693]
[1756707668822,7.42e-06,108040.0,108030.0,2.30942949]
[1756707675297,7.42e-06,108040.0,108030.0,2.64307205]
[1756707675471,7.42e-06,108040.0,108030.0,2.30942949]
[1756707675910,7.42e-06,108040.0,108030.0,2.64307205]
[1756707676326,0.00518801,108050.0,108040.0,0.53511662]
[1756707676538,0.04696751,108060.0,108050.0,0.74603831]
[1756707676746,0.04701493,108060.0,108050.0,0.99469832]
[1756707677156,0.04701493,108060.0,108050.0,1.39469832]
[1756707677364,0.04701493,108060.0,108050.0,1.72834088]
[1756707677593,0.04701493,108060.0,108050.0,1.75613988]
[1756707678821,0.04701493,108060.0,108050.0,2.25613988]
[1756707679239,1e-08,108060.0,108050.0,2.25613988]
[1756707679649,1e-08,108060.0,108050.0,2.25813988]
[1756707680324,1e-08,108060.0,108050.0,2.25913988]
[1756707680738,0.02302277,108070.0,108060.0,0.86872492]
[1756707680965,0.02349705,108070.0,108060.0,1.20952375]
[1756707681175,0.02349705,108070.0,108060.0,0.87588119]
[1756707681400,0.02349705,108070.0,108060.0,1.20952375]
[1756707681606,0.0235066,108080.0,108070.0,0.71870779]
[1756707681814,0.0235066,108080.0,108070.0,0.9674478]
[1756707682473,0.0235066,108080.0,108070.0,1.3674478]
[1756707682904,1e-08,108080.0,108070.0,1.41617962]
[1756707683112,1e-08,108080.0,108070.0,0.92677706]
[1756707683324,1e-08,108080.0,108070.0,1.41617962]
[1756707683974,1e-08,108080.0,108070.0,1.75617962]
[1756707684170,1e-08,108080.0,108070.0,2.25617962]
[1756707684373,1e-08,108080.0,108070.0,2.26017962]
[1756707684606,1e-08,108080.0,108070.0,2.10441962]
[1756707684778,1e-08,108080.0,108070.0,2.26009962]
[1756707684984,0.05226469,108090.0,108080.0,0.53504811]
[1756707685188,0.05226469,108090.0,108080.0,1.18847068]
[1756707685395,0.05226469,108090.0,108080.0,1.25036177]
[1756707685600,0.05226469,108090.0,108080.0,1.65036177]
[1756707685986,0.05226469,108090.0,108080.0,1.99036177]
[1756707686224,1e-08,108090.0,108080.0,1.88468177]
[1756707686425,1e-08,108090.0,108080.0,2.04036177]
[1756707686641,0.02495809,108100.0,108090.0,0.40596981]
[1756707686806,0.02510029,108100.0,108090.0,0.49894982]
[1756707687151,0.02510029,108100.0,108090.0,0.65458982]
[1756707687587,0.02510029,108100.0,108090.0,1.26037938]
[1756707687789,0.02510029,108100.0,108090.0,1.41601938]
[1756707687991,0.02510029,108100.0,108090.0,1.08237682]
[1756707688607,0.02510029,108100.0,108090.0,1.42673682]
[1756707688771,0.02510029,108100.0,108090.0,1.58237682]
[1756707688975,0.02610029,108100.0,108090.0,1.58237682]
[1756707689184,0.02610029,108100.0,108090.0,1.42673682]
[1756707689339,0.02610029,108100.0,108090.0,1.58233682]
[1756707690185,0.02610029,108100.0,108090.0,1.91593938]
[1756707690599,0.02510029,108100.0,108090.0,1.58229682]
[1756707691255,0.02510029,108100.0,108090.0,1.58429682]
[1756707692349,0.02510029,108100.0,108090.0,1.42873682]
[1756707692550,0.02510029,108100.0,108090.0,1.58625682]
[1756707695038,0.02510029,108100.0,108090.0,1.58637682]
[1756707695927,0.02510029,108100.0,108090.0,1.43073682]
[1756707696397,0.02510029,108100.0,108090.0,1.58633682]
[1756707697034,0.02510029,108100.0,108090.0,1.43073682]
[1756707697158,0.02510029,108100.0,108090.0,1.58629682]
[1756707697884,0.02510029,108100.0,108090.0,1.58429682]
[1756707698308,0.02510029,108100.0,108090.0,1.58329682]
[1756707698729,0.02510029,108100.0,108090.0,1.58429682]
[1756707699616,0.02510029,108100.0,108090.0,1.42873682]
[1756707699838,0.02510029,108100.0,108090.0,1.58425682]
[1756707700474,0.02510029,108100.0,108090.0,1.22873682]
[1756707700695,0.35874285,108100.0,108090.0,1.38425682]
[1756707701834,0.35874285,108100.0,108090.0,1.38325682]
[1756707702043,0.35874285,108100.0,108090.0,1.38225682]
[1756707702239,0.35974285,108100.0,108090.0,1.22673682]
[1756707702448,0.35974285,108100.0,108090.0,1.38221682]
[1756707702665,0.35974285,108100.0,108090.0,0.95442982]
[1756707702901,0.35974285,108100.0,108090.0,0.79894982]
[1756707703112,0.35974285,108100.0,108090.0,0.95442982]
[1756707703327,0.02610029,108100.0,108090.0,0.95442982]
[1756707704614,0.35974285,108100.0,108090.0,0.95442982]
[1756707705191,0.35874285,108100.0,108090.0,0.95442982]
[1756707705393,0.35974285,108100.0,108090.0,0.95442982]
[1756707706261,0.35874285,108100.0,108090.0,0.95442982]
[1756707706439,0.35874285,108100.0,108090.0,0.79894982]
[1756707706701,0.35974285,108100.0,108090.0,0.95442982]
[1756707708340,0.35974285,108100.0,108090.0,0.45442982]
[1756707710654,0.02610029,108100.0,108090.0,0.45442982]
[1756707710860,0.02610029,108100.0,108090.0,0.79442982]
[1756707712541,0.02510029,108100.0,108090.0,1.19442982]
[1756707712959,0.02510029,108100.0,108090.0,1.19542982]
[1756707714057,0.02510029,108100.0,108090.0,1.19642982]
[1756707716180,0.02510029,108100.0,108090.0,1.22421982]
[1756707721547,0.02510029,108100.0,108090.0,1.06873982]
[1756707721909,0.02510029,108100.0,108090.0,1.22409982]
[1756707723754,0.02510029,108100.0,108090.0,1.06873982]
[1756707723963,0.02510029,108100.0,108090.0,1.22409982]
[1756707725266,0.02510029,108100.0,108090.0,1.06873982]
[1756707725484,0.02510029,108100.0,108090.0,1.22409982]
[1756707727446,0.02510029,108100.0,108090.0,1.06873982]
[1756707727653,0.02510029,108100.0,108090.0,1.22409982]
[1756707732586,0.35874285,108100.0,108090.0,0.82409982]
[1756707732789,0.02510029,108100.0,108090.0,0.82409982]
[1756707732991,0.02510029,108100.0,108090.0,1.22409982]
[1756707733576,0.02510029,108100.0,108090.0,1.22309982]
[1756707734108,0.02610029,108100.0,108090.0,0.82309982]
[1756707734755,0.02510029,108100.0,108090.0,0.82309982]
[1756707734988,0.35874285,108100.0,108090.0,0.86773982]
[1756707735196,0.35874285,108100.0,108090.0,0.99530982]
[1756707736049,0.02510029,108100.0,108090.0,0.99530982]
[1756707736868,0.02510029,108100.0,108090.0,0.99430982]
[1756707737116,0.02510029,108100.0,108090.0,1.02209882]
[1756707737299,0.02510029,108100.0,108090.0,1.02309882]
[1756707737904,0.02510029,108100.0,108090.0,1.42309882]
[1756707739758,0.02510029,108100.0,108090.0,1.02309882]